[Event "Late-Titled-Tuesday-Blitz-October-03-2023"]
[Site "Chess.com"]
[Date "2023.10.03"]
[Round "2"]
[White "The_Straightforward_Rook"]
[Black "dretch"]
[Result "1-0"]
[WhiteElo "2560"]
[BlackElo "2835"]
[TimeControl "180+1"]
[EndTime "14:17:10 PDT"]
[Termination "The_Straightforward_Rook won on time"]

1. d4 {[%clk 0:02:56.2]} 1... d5 {[%clk 0:02:58.8]} 2. Nf3 {[%clk 0:02:55.9]}
2... Nf6 {[%clk 0:02:58.8]} 3. c4 {[%clk 0:02:55.6]} 3... c6 {[%clk 0:02:58.7]}
4. cxd5 {[%clk 0:02:55]} 4... cxd5 {[%clk 0:02:58.9]} 5. Nc3 {[%clk 0:02:54.9]}
5... Nc6 {[%clk 0:02:59.4]} 6. Bf4 {[%clk 0:02:54.6]} 6... Nh5 {[%clk
0:02:59.6]} 7. Bd2 {[%clk 0:02:51.8]} 7... e6 {[%clk 0:02:59.4]} 8. Rc1 {[%clk
0:02:45.2]} 8... Bd6 {[%clk 0:02:57.5]} 9. e3 {[%clk 0:02:41.1]} 9... O-O {[%clk
0:02:54.7]} 10. Bd3 {[%clk 0:02:41.3]} 10... Nf6 {[%clk 0:02:50.4]} 11. O-O
{[%clk 0:02:32.3]} 11... e5 {[%clk 0:02:50.1]} 12. dxe5 {[%clk 0:02:29.2]} 12...
Nxe5 {[%clk 0:02:49.2]} 13. Nxe5 {[%clk 0:02:26.2]} 13... Bxe5 {[%clk
0:02:49.1]} 14. Bb1 {[%clk 0:02:21.9]} 14... d4 {[%clk 0:02:27.1]} 15. exd4
{[%clk 0:02:16.9]} 15... Qxd4 {[%clk 0:02:27.1]} 16. Bg5 {[%clk 0:02:09.8]}
16... Be6 {[%clk 0:02:06.4]} 17. Qxd4 {[%clk 0:02:06]} 17... Bxd4 {[%clk
0:02:05.1]} 18. Rfd1 {[%clk 0:02:03.1]} 18... Rfd8 {[%clk 0:02:04.1]} 19. h3
{[%clk 0:01:49]} 19... h6 {[%clk 0:02:00.7]} 20. Bxf6 {[%clk 0:01:47.2]} 20...
Bxf6 {[%clk 0:02:00.5]} 21. Be4 {[%clk 0:01:47.1]} 21... Rxd1+ {[%clk
0:01:39.5]} 22. Rxd1 {[%clk 0:01:48]} 22... Bxc3 {[%clk 0:01:25]} 23. bxc3
{[%clk 0:01:48]} 23... Rc8 {[%clk 0:01:22.4]} 24. Bxb7 {[%clk 0:01:43.2]} 24...
Rxc3 {[%clk 0:01:21.9]} 25. Bd5 {[%clk 0:01:37.7]} 25... Bf5 {[%clk 0:01:04.6]}
26. Bb3 {[%clk 0:01:37]} 26... g5 {[%clk 0:00:54.6]} 27. Rd6 {[%clk 0:01:32.4]}
27... Kg7 {[%clk 0:00:53]} 28. Ra6 {[%clk 0:01:27.7]} 28... Rc7 {[%clk
0:00:47.3]} 29. Kh2 {[%clk 0:01:19.8]} 29... Bd3 {[%clk 0:00:45.7]} 30. Ra5
{[%clk 0:01:19.3]} 30... Kf6 {[%clk 0:00:28.9]} 31. Kg3 {[%clk 0:01:18.6]} 31...
Be4 {[%clk 0:00:23.6]} 32. f3 {[%clk 0:01:17.8]} 32... Bd3 {[%clk 0:00:20.5]}
33. h4 {[%clk 0:01:17.8]} 33... Bf1 {[%clk 0:00:17.2]} 34. Rd5 {[%clk
0:01:09.8]} 34... gxh4+ {[%clk 0:00:15.4]} 35. Kf2 {[%clk 0:00:54.5]} 35... Bc4
{[%clk 0:00:12.8]} 36. Rd6+ {[%clk 0:00:52]} 36... Be6 {[%clk 0:00:10.7]} 37.
Ra6 {[%clk 0:00:47.2]} 37... Ke5 {[%clk 0:00:10.1]} 38. Bxe6 {[%clk 0:00:45.8]}
38... fxe6 {[%clk 0:00:11]} 39. Kg1 {[%clk 0:00:44]} 39... Kd4 {[%clk
0:00:08.2]} 40. Rxe6 {[%clk 0:00:42.5]} 40... Kc3 {[%clk 0:00:08.1]} 41. Rxh6
{[%clk 0:00:41.7]} 41... a5 {[%clk 0:00:07.5]} 42. Rxh4 {[%clk 0:00:41.2]} 42...
Kb2 {[%clk 0:00:04.4]} 43. Ra4 {[%clk 0:00:39.6]} 43... Rc5 {[%clk 0:00:04.8]}
44. Kh2 {[%clk 0:00:36.8]} 44... Kc3 {[%clk 0:00:04.9]} 45. Kg3 {[%clk
0:00:36.8]} 45... Kd3 {[%clk 0:00:05.1]} 46. Kf4 {[%clk 0:00:36.5]} 46... Ke2
{[%clk 0:00:04.6]} 47. Ra3 {[%clk 0:00:35.3]} 47... Kf2 {[%clk 0:00:04.5]} 48.
g4 {[%clk 0:00:35.7]} 48... Rc4+ {[%clk 0:00:04.6]} 49. Kf5 {[%clk 0:00:35.9]}
49... a4 {[%clk 0:00:04.9]} 50. g5 {[%clk 0:00:35.6]} 50... Kg3 {[%clk
0:00:04.9]} 51. g6 {[%clk 0:00:35.4]} 51... Rf4+ {[%clk 0:00:04.7]} 52. Ke6
{[%clk 0:00:34]} 52... Rb4 {[%clk 0:00:03.9]} 53. g7 {[%clk 0:00:32]} 53... Rb6+
{[%clk 0:00:04.4]} 54. Kf7 {[%clk 0:00:32.1]} 54... Rb7+ {[%clk 0:00:04.9]} 55.
Kg6 {[%clk 0:00:32.5]} 55... Rb6+ {[%clk 0:00:05]} 56. Kh7 {[%clk 0:00:33]}
56... Rb7 {[%clk 0:00:05.2]} 57. Kh8 {[%clk 0:00:33.5]} 57... Kf2 {[%clk
0:00:02.7]} 58. g8=Q {[%clk 0:00:33.7]} 1-0

[Event "Late-Titled-Tuesday-Blitz-October-03-2023"]
[Site "Chess.com"]
[Date "2023.10.03"]
[Round "2"]
[White "SpeedofLight0"]
[Black "josiur"]
[Result "0-1"]
[WhiteElo "3019"]
[BlackElo "2527"]
[TimeControl "180+1"]
[EndTime "14:17:10 PDT"]
[Termination "josiur won by checkmate"]

1. Nf3 {[%clk 0:00:36.3]} 1... d5 {[%clk 0:02:58.3]} 2. c4 {[%clk 0:00:37.2]}
2... e6 {[%clk 0:02:58]} 3. e3 {[%clk 0:00:37.2]} 3... a6 {[%clk 0:02:57.2]} 4.
b3 {[%clk 0:00:38.1]} 4... b6 {[%clk 0:02:56.7]} 5. Bb2 {[%clk 0:00:38.2]} 5...
Bb7 {[%clk 0:02:57.1]} 6. d4 {[%clk 0:00:39.1]} 6... Nd7 {[%clk 0:02:56.8]} 7.
Nbd2 {[%clk 0:00:40]} 7... Ngf6 {[%clk 0:02:56.7]} 8. Bd3 {[%clk 0:00:40.6]}
8... Bd6 {[%clk 0:02:56]} 9. O-O {[%clk 0:00:40.7]} 9... O-O {[%clk 0:02:55.3]}
10. Ne5 {[%clk 0:00:40]} 10... c5 {[%clk 0:02:53.3]} 11. f4 {[%clk 0:00:39.8]}
11... Rc8 {[%clk 0:02:48.4]} 12. Qf3 {[%clk 0:00:38.5]} 12... cxd4 {[%clk
0:02:46.6]} 13. exd4 {[%clk 0:00:38]} 13... Ba8 {[%clk 0:02:42.4]} 14. Qh3
{[%clk 0:00:37.3]} 14... dxc4 {[%clk 0:02:39.7]} 15. bxc4 {[%clk 0:00:38.2]}
15... h6 {[%clk 0:02:35.4]} 16. Rae1 {[%clk 0:00:26.7]} 16... Qc7 {[%clk
0:02:34.3]} 17. Kh1 {[%clk 0:00:20.8]} 17... Bb4 {[%clk 0:02:33.2]} 18. Re2
{[%clk 0:00:18.4]} 18... Rfd8 {[%clk 0:02:26.1]} 19. d5 {[%clk 0:00:17]} 19...
exd5 {[%clk 0:02:21.8]} 20. Nxd7 {[%clk 0:00:17.1]} 20... Nxd7 {[%clk
0:02:13.7]} 21. cxd5 {[%clk 0:00:15.8]} 21... Nf8 {[%clk 0:02:08]} 22. Qg4
{[%clk 0:00:13.7]} 22... Bc3 {[%clk 0:01:49.7]} 23. Rc1 {[%clk 0:00:11.6]} 23...
Bxb2 {[%clk 0:01:45.2]} 24. Rxc7 {[%clk 0:00:12.5]} 24... Rxc7 {[%clk
0:01:45.6]} 25. Nb3 {[%clk 0:00:09]} 25... Bf6 {[%clk 0:01:35.4]} 26. Bxa6
{[%clk 0:00:08.7]} 26... Bxd5 {[%clk 0:01:33.2]} 27. h3 {[%clk 0:00:07.2]} 27...
Be6 {[%clk 0:01:22.6]} 28. Qg3 {[%clk 0:00:06.9]} 28... Bf5 {[%clk 0:01:18.1]}
29. Qf2 {[%clk 0:00:05.7]} 29... Rd6 {[%clk 0:01:15.1]} 30. Bb5 {[%clk
0:00:03.9]} 30... Re7 {[%clk 0:01:13.2]} 31. Rxe7 {[%clk 0:00:03.5]} 31... Bxe7
{[%clk 0:01:14.1]} 32. Qe3 {[%clk 0:00:03.8]} 32... Bh4 {[%clk 0:01:09.9]} 33.
Bc4 {[%clk 0:00:03.8]} 33... Be6 {[%clk 0:01:03.5]} 34. Bb5 {[%clk 0:00:03.2]}
34... Bf6 {[%clk 0:00:50.6]} 35. Qe4 {[%clk 0:00:02.3]} 35... Bd5 {[%clk
0:00:43]} 36. Qb4 {[%clk 0:00:02.4]} 36... Re6 {[%clk 0:00:40]} 37. Qd2 {[%clk
0:00:02.9]} 37... Bb7 {[%clk 0:00:35.4]} 38. Bc4 {[%clk 0:00:02.5]} 38... Re4
{[%clk 0:00:32.6]} 39. Bd3 {[%clk 0:00:01.6]} 39... Re8 {[%clk 0:00:30.4]} 40.
Bc2 {[%clk 0:00:01.8]} 40... Rd8 {[%clk 0:00:30.6]} 41. Qe3 {[%clk 0:00:02.2]}
41... Ne6 {[%clk 0:00:26]} 42. Qxb6 {[%clk 0:00:01.9]} 42... Bd5 {[%clk
0:00:22.2]} 43. f5 {[%clk 0:00:02.5]} 43... Nf4 {[%clk 0:00:20.9]} 44. Qe3
{[%clk 0:00:01.8]} 44... Nxg2 {[%clk 0:00:18.8]} 45. Qe2 {[%clk 0:00:01.3]}
45... Nf4+ {[%clk 0:00:18.3]} 46. Qe4 {[%clk 0:00:01.8]} 46... Bxe4+ {[%clk
0:00:18.3]} 47. Bxe4 {[%clk 0:00:02.7]} 47... Bh4 {[%clk 0:00:17.7]} 48. Kg1
{[%clk 0:00:02.5]} 48... Bg3 {[%clk 0:00:18]} 49. Kf1 {[%clk 0:00:02.3]} 49...
Rd1# {[%clk 0:00:16.9]} 0-1

[Event "Late-Titled-Tuesday-Blitz-October-03-2023"]
[Site "Chess.com"]
[Date "2023.10.03"]
[Round "2"]
[White "RamyresCoelho"]
[Black "esskeettit"]
[Result "1-0"]
[WhiteElo "2285"]
[BlackElo "2477"]
[TimeControl "180+1"]
[EndTime "14:17:10 PDT"]
[Termination "RamyresCoelho won by resignation"]

1. e4 {[%clk 0:02:59.3]} 1... c5 {[%clk 0:02:59]} 2. Nf3 {[%clk 0:02:58.5]} 2...
Nc6 {[%clk 0:02:58.2]} 3. d4 {[%clk 0:02:58.7]} 3... cxd4 {[%clk 0:02:59.1]} 4.
c3 {[%clk 0:02:59.1]} 4... dxc3 {[%clk 0:02:58.3]} 5. Nxc3 {[%clk 0:03:00]} 5...
g6 {[%clk 0:02:57.6]} 6. Bc4 {[%clk 0:02:59.5]} 6... Bg7 {[%clk 0:02:57.2]} 7.
O-O {[%clk 0:02:58.1]} 7... Nf6 {[%clk 0:02:54.8]} 8. e5 {[%clk 0:02:57]} 8...
Ng4 {[%clk 0:02:52.3]} 9. Re1 {[%clk 0:02:35.8]} 9... Ngxe5 {[%clk 0:02:39.5]}
10. Nxe5 {[%clk 0:02:35.4]} 10... Nxe5 {[%clk 0:02:39.2]} 11. Rxe5 {[%clk
0:02:30.7]} 11... Bxe5 {[%clk 0:02:30.1]} 12. Qd5 {[%clk 0:02:29.9]} 12... Qc7
{[%clk 0:01:47.3]} 13. Qxf7+ {[%clk 0:02:27.7]} 13... Kd8 {[%clk 0:01:47.6]} 14.
Bg5 {[%clk 0:02:11.6]} 14... Bxh2+ {[%clk 0:00:33.1]} 15. Kh1 {[%clk 0:02:10.5]}
15... Qe5 {[%clk 0:00:33.6]} 16. f4 {[%clk 0:02:01.2]} 16... Bxf4 {[%clk
0:00:20.2]} 17. Bxf4 {[%clk 0:01:59.9]} 17... Qh5+ {[%clk 0:00:19.5]} 18. Kg1
{[%clk 0:01:59.2]} 18... d6 {[%clk 0:00:09.9]} 19. Nd5 {[%clk 0:01:55.3]} 19...
Re8 {[%clk 0:00:10.1]} 20. Re1 {[%clk 0:01:54.2]} 20... Bf5 {[%clk 0:00:05.3]}
21. Bxd6 {[%clk 0:01:49.7]} 21... Qh4 {[%clk 0:00:03.1]} 22. Bxe7+ {[%clk
0:01:46.9]} 22... Rxe7 {[%clk 0:00:04]} 23. Qxe7+ {[%clk 0:01:43.2]} 23... Qxe7
{[%clk 0:00:04.5]} 24. Rxe7 {[%clk 0:01:41.2]} 24... Rc8 {[%clk 0:00:05.1]} 25.
Bb3 {[%clk 0:01:38.1]} 25... Rc5 {[%clk 0:00:05.2]} 26. Rxb7 {[%clk 0:01:36.6]}
26... a5 {[%clk 0:00:04.5]} 27. Rxh7 {[%clk 0:01:35]} 27... a4 {[%clk
0:00:04.2]} 28. Rh8+ {[%clk 0:01:35]} 28... Kd7 {[%clk 0:00:04.3]} 29. Nf6+
{[%clk 0:01:30.9]} 29... Ke7 {[%clk 0:00:03.8]} 30. Ng8+ {[%clk 0:01:26.7]}
30... Kd6 {[%clk 0:00:03.7]} 31. Bf7 {[%clk 0:01:23.5]} 31... Rc8 {[%clk
0:00:04.5]} 32. Rh4 {[%clk 0:01:18.7]} 32... Rb8 {[%clk 0:00:05]} 33. Rd4+
{[%clk 0:01:18.1]} 33... Ke5 {[%clk 0:00:04.7]} 34. Rxa4 {[%clk 0:01:14.9]}
34... Rxb2 {[%clk 0:00:05.4]} 35. Ra5+ {[%clk 0:01:15.2]} 35... Kf4 {[%clk
0:00:05.6]} 36. Nf6 {[%clk 0:01:14.6]} 36... Rb1+ {[%clk 0:00:06]} 37. Kh2
{[%clk 0:01:14.6]} 37... Rb2 {[%clk 0:00:06.7]} 38. Nd5+ {[%clk 0:01:14.4]}
38... Kg5 {[%clk 0:00:06.6]} 39. Ne3 {[%clk 0:01:11.5]} 39... Kf6 {[%clk
0:00:06.9]} 40. Nxf5 {[%clk 0:01:10.1]} 40... Kxf7 {[%clk 0:00:07.5]} 41. Ng3
{[%clk 0:01:08.4]} 41... Kf6 {[%clk 0:00:08.3]} 42. Ra6+ {[%clk 0:01:07.5]}
42... Kg5 {[%clk 0:00:08.1]} 43. a4 {[%clk 0:01:08.4]} 43... Ra2 {[%clk
0:00:07.2]} 44. a5 {[%clk 0:01:08.3]} 44... Ra3 {[%clk 0:00:07.9]} 45. Ra8
{[%clk 0:01:07.7]} 45... Kh4 {[%clk 0:00:07.9]} 46. Nh1 {[%clk 0:01:07.1]} 46...
g5 {[%clk 0:00:07.8]} 47. a6 {[%clk 0:01:07.2]} 47... Kg4 {[%clk 0:00:08]} 48.
a7 {[%clk 0:01:07.1]} 48... Ra2 {[%clk 0:00:08.6]} 49. Ng3 {[%clk 0:01:05]}
49... Ra6 {[%clk 0:00:07.3]} 50. Ne4 {[%clk 0:01:04.6]} 50... Rh6+ {[%clk
0:00:07.7]} 51. Kg1 {[%clk 0:01:04.8]} 51... Ra6 {[%clk 0:00:08.4]} 52. Nc5
{[%clk 0:01:01.7]} 52... Ra2 {[%clk 0:00:03.9]} 53. Kf1 {[%clk 0:00:57.2]} 53...
Ra1+ {[%clk 0:00:03]} 54. Ke2 {[%clk 0:00:54.7]} 54... Ra2+ {[%clk 0:00:03.4]}
55. Kd3 {[%clk 0:00:54.8]} 55... Kg3 {[%clk 0:00:03.8]} 56. Ne4+ {[%clk
0:00:44.6]} 56... Kxg2 {[%clk 0:00:03.6]} 57. Nxg5 {[%clk 0:00:44.5]} 57... Kg3
{[%clk 0:00:04.3]} 58. Ne6 {[%clk 0:00:44.7]} 58... Ra3+ {[%clk 0:00:03.3]} 59.
Kd4 {[%clk 0:00:44.8]} 1-0

[Event "Late-Titled-Tuesday-Blitz-October-03-2023"]
[Site "Chess.com"]
[Date "2023.10.03"]
[Round "2"]
[White "tgpgoat"]
[Black "IPAchess"]
[Result "0-1"]
[WhiteElo "2492"]
[BlackElo "2324"]
[TimeControl "180+1"]
[EndTime "14:17:15 PDT"]
[Termination "IPAchess won by checkmate"]

1. Nf3 {[%clk 0:02:42.7]} 1... d5 {[%clk 0:02:58.4]} 2. g3 {[%clk 0:02:41.7]}
2... Nf6 {[%clk 0:02:58.8]} 3. Bg2 {[%clk 0:02:40.6]} 3... e6 {[%clk 0:02:59.1]}
4. O-O {[%clk 0:02:37.2]} 4... c5 {[%clk 0:02:53.5]} 5. d4 {[%clk 0:02:36.4]}
5... Nc6 {[%clk 0:02:52.9]} 6. c3 {[%clk 0:02:31.4]} 6... Be7 {[%clk 0:02:49.1]}
7. Re1 {[%clk 0:02:30.5]} 7... O-O {[%clk 0:02:47.8]} 8. Nbd2 {[%clk 0:02:24.8]}
8... b5 {[%clk 0:02:42.6]} 9. Ne5 {[%clk 0:02:14.6]} 9... Bb7 {[%clk 0:02:39.8]}
10. Nxc6 {[%clk 0:02:13.1]} 10... Bxc6 {[%clk 0:02:38.7]} 11. dxc5 {[%clk
0:02:11.2]} 11... Bxc5 {[%clk 0:02:35.9]} 12. Nb3 {[%clk 0:02:12.1]} 12... Bd6
{[%clk 0:02:24.8]} 13. Nd4 {[%clk 0:02:11.8]} 13... Bd7 {[%clk 0:02:24.6]} 14.
Bg5 {[%clk 0:02:10.1]} 14... h6 {[%clk 0:02:21.6]} 15. Bxf6 {[%clk 0:02:08.2]}
15... Qxf6 {[%clk 0:02:22.5]} 16. e4 {[%clk 0:02:08.5]} 16... dxe4 {[%clk
0:02:07.4]} 17. Nxb5 {[%clk 0:02:01]} 17... Bxg3 {[%clk 0:01:56.2]} 18. hxg3
{[%clk 0:01:35.8]} 18... Bxb5 {[%clk 0:01:55.2]} 19. Bxe4 {[%clk 0:01:34.4]}
19... Rad8 {[%clk 0:01:54.4]} 20. Qb3 {[%clk 0:01:32.5]} 20... Rd2 {[%clk
0:01:50.5]} 21. f4 {[%clk 0:01:11.6]} 21... Rb8 {[%clk 0:00:48.6]} 22. Rad1
{[%clk 0:00:47.6]} 22... Qd8 {[%clk 0:00:29.6]} 23. c4 {[%clk 0:00:37]} 23...
Qd4+ {[%clk 0:00:26.9]} 24. Kh1 {[%clk 0:00:32.8]} 24... Rxd1 {[%clk 0:00:23]}
25. Qxd1 {[%clk 0:00:31.7]} 25... Qxc4 {[%clk 0:00:20.8]} 26. b3 {[%clk
0:00:29.9]} 26... Qc3 {[%clk 0:00:18.2]} 27. Kg2 {[%clk 0:00:24.3]} 27... Bc6
{[%clk 0:00:16.3]} 28. Bxc6 {[%clk 0:00:23.1]} 28... Qxc6+ {[%clk 0:00:17.2]}
29. Qf3 {[%clk 0:00:23.5]} 29... Qc5 {[%clk 0:00:15.4]} 30. Re2 {[%clk
0:00:23.5]} 30... Rd8 {[%clk 0:00:15.6]} 31. Rf2 {[%clk 0:00:23.4]} 31... Qc1
{[%clk 0:00:12.8]} 32. Rf1 {[%clk 0:00:20.1]} 32... Qd2+ {[%clk 0:00:12.7]} 33.
Rf2 {[%clk 0:00:20.4]} 33... Qd4 {[%clk 0:00:13.6]} 34. Qb7 {[%clk 0:00:19.3]}
34... Rd5 {[%clk 0:00:12.4]} 35. Qc8+ {[%clk 0:00:19]} 35... Kh7 {[%clk
0:00:12.4]} 36. Qc2+ {[%clk 0:00:19.9]} 36... g6 {[%clk 0:00:12.3]} 37. Qe2
{[%clk 0:00:19.8]} 37... h5 {[%clk 0:00:12.6]} 38. Qf3 {[%clk 0:00:20.1]} 38...
h4 {[%clk 0:00:13]} 39. g4 {[%clk 0:00:19.1]} 39... e5 {[%clk 0:00:08.5]} 40. f5
{[%clk 0:00:16.9]} 40... e4 {[%clk 0:00:08.6]} 41. Qh3 {[%clk 0:00:16.7]} 41...
e3 {[%clk 0:00:08.1]} 42. Qxh4+ {[%clk 0:00:17]} 42... Kg8 {[%clk 0:00:07.8]}
43. Re2 {[%clk 0:00:09.8]} 43... Rxf5 {[%clk 0:00:08]} 44. Qg3 {[%clk
0:00:07.6]} 44... Qe4+ {[%clk 0:00:08.4]} 45. Kh2 {[%clk 0:00:07.7]} 45... Rf3
{[%clk 0:00:09]} 46. Qb8+ {[%clk 0:00:06.9]} 46... Kg7 {[%clk 0:00:09.4]} 47.
Qc8 {[%clk 0:00:04.6]} 47... Qf4+ {[%clk 0:00:09.1]} 48. Kg2 {[%clk 0:00:04.6]}
48... Qg3+ {[%clk 0:00:09.5]} 49. Kh1 {[%clk 0:00:04]} 49... Rf1# {[%clk
0:00:10.2]} 0-1

[Event "Late-Titled-Tuesday-Blitz-October-03-2023"]
[Site "Chess.com"]
[Date "2023.10.03"]
[Round "2"]
[White "Alexandr_Predke"]
[Black "Mikedannnn"]
[Result "1-0"]
[WhiteElo "2886"]
[BlackElo "2552"]
[TimeControl "180+1"]
[EndTime "14:17:16 PDT"]
[Termination "Alexandr_Predke won on time"]

1. d4 {[%clk 0:02:50.5]} 1... c5 {[%clk 0:02:58]} 2. d5 {[%clk 0:02:49.2]} 2...
g6 {[%clk 0:02:57.7]} 3. h4 {[%clk 0:02:48.2]} 3... h5 {[%clk 0:02:56.3]} 4. Nf3
{[%clk 0:02:46.4]} 4... Bg7 {[%clk 0:02:56.2]} 5. Nc3 {[%clk 0:02:45.5]} 5... d6
{[%clk 0:02:52.7]} 6. Ng5 {[%clk 0:02:43.9]} 6... Na6 {[%clk 0:02:18.8]} 7. e4
{[%clk 0:02:41.5]} 7... Nc7 {[%clk 0:02:18.7]} 8. a4 {[%clk 0:02:42.2]} 8... b6
{[%clk 0:02:16.1]} 9. Be3 {[%clk 0:02:34.9]} 9... a6 {[%clk 0:02:15.5]} 10. Qd2
{[%clk 0:02:33.2]} 10... Rb8 {[%clk 0:02:13.6]} 11. Rb1 {[%clk 0:02:26.5]} 11...
b5 {[%clk 0:02:11.7]} 12. axb5 {[%clk 0:02:26.3]} 12... axb5 {[%clk 0:02:11.5]}
13. b4 {[%clk 0:02:26.6]} 13... cxb4 {[%clk 0:01:52.6]} 14. Rxb4 {[%clk
0:02:27.5]} 14... Bd7 {[%clk 0:01:52]} 15. Bd4 {[%clk 0:02:24.9]} 15... Nf6
{[%clk 0:01:51.2]} 16. f3 {[%clk 0:02:18.3]} 16... Na6 {[%clk 0:01:41.9]} 17.
Rb1 {[%clk 0:02:17.8]} 17... Qa5 {[%clk 0:01:33.8]} 18. Be2 {[%clk 0:02:10.9]}
18... b4 {[%clk 0:01:30.7]} 19. Nd1 {[%clk 0:02:10.5]} 19... Nc5 {[%clk
0:01:28.4]} 20. O-O {[%clk 0:02:05.3]} 20... O-O {[%clk 0:01:18.4]} 21. Ne3
{[%clk 0:02:05.4]} 21... Bb5 {[%clk 0:01:11.2]} 22. Ra1 {[%clk 0:01:53.7]} 22...
Qb6 {[%clk 0:01:08.1]} 23. Bxb5 {[%clk 0:01:44.4]} 23... Qxb5 {[%clk 0:01:08]}
24. Rfb1 {[%clk 0:01:42.5]} 24... Rfc8 {[%clk 0:00:53.8]} 25. Ra7 {[%clk
0:01:37.7]} 25... Nfd7 {[%clk 0:00:38]} 26. Bxg7 {[%clk 0:01:34.7]} 26... Kxg7
{[%clk 0:00:38.9]} 27. Qd4+ {[%clk 0:01:33.9]} 27... Kg8 {[%clk 0:00:38.9]} 28.
Kh2 {[%clk 0:01:14.7]} 28... Qe2 {[%clk 0:00:32.3]} 29. Kg3 {[%clk 0:00:56.1]}
29... Re8 {[%clk 0:00:16.7]} 30. Nh3 {[%clk 0:00:30.5]} 30... Ne5 {[%clk
0:00:15.1]} 31. Nf4 {[%clk 0:00:29.6]} 31... Qb5 {[%clk 0:00:15.2]} 32. Qa1
{[%clk 0:00:22.4]} 32... b3 {[%clk 0:00:11.3]} 33. cxb3 {[%clk 0:00:20.6]} 33...
Nxb3 {[%clk 0:00:08.3]} 34. Qc3 {[%clk 0:00:20.5]} 34... Qc5 {[%clk 0:00:06.1]}
35. Qxc5 {[%clk 0:00:17]} 35... Nxc5 {[%clk 0:00:07]} 36. Rxe7 {[%clk
0:00:11.3]} 36... Rxb1 {[%clk 0:00:05.4]} 37. Rxe8+ {[%clk 0:00:11.8]} 37... Kg7
{[%clk 0:00:05.8]} 38. Nc4 {[%clk 0:00:11.6]} 38... Nxc4 {[%clk 0:00:05.3]} 39.
Rc8 {[%clk 0:00:09.8]} 39... Rb3 {[%clk 0:00:04.9]} 40. Kh2 {[%clk 0:00:08.8]}
40... Ne5 {[%clk 0:00:03.3]} 41. Rd8 {[%clk 0:00:08.5]} 41... Rb6 {[%clk
0:00:02.4]} 42. Ne2 {[%clk 0:00:07.4]} 1-0

[Event "Late-Titled-Tuesday-Blitz-October-03-2023"]
[Site "Chess.com"]
[Date "2023.10.03"]
[Round "2"]
[White "slorovel"]
[Black "ETTrainer"]
[Result "1/2-1/2"]
[WhiteElo "2484"]
[BlackElo "2269"]
[TimeControl "180+1"]
[EndTime "14:17:16 PDT"]
[Termination "Game drawn by repetition"]

1. e4 {[%clk 0:03:00.9]} 1... c5 {[%clk 0:02:59.7]} 2. Nf3 {[%clk 0:03:00.8]}
2... a6 {[%clk 0:02:59.9]} 3. c3 {[%clk 0:03:00.2]} 3... e5 {[%clk 0:03:00.8]}
4. Nxe5 {[%clk 0:02:58.4]} 4... Qe7 {[%clk 0:03:00.9]} 5. Nf3 {[%clk 0:02:56.6]}
5... Qxe4+ {[%clk 0:03:00.2]} 6. Be2 {[%clk 0:02:57.2]} 6... Be7 {[%clk
0:02:57.6]} 7. O-O {[%clk 0:02:57.6]} 7... Nf6 {[%clk 0:02:57.6]} 8. d4 {[%clk
0:02:58]} 8... cxd4 {[%clk 0:02:57.2]} 9. Nxd4 {[%clk 0:02:57.5]} 9... Nc6
{[%clk 0:02:53.3]} 10. Nd2 {[%clk 0:02:58]} 10... Qg6 {[%clk 0:02:51.4]} 11.
N2f3 {[%clk 0:02:57.3]} 11... d5 {[%clk 0:02:30]} 12. Bd3 {[%clk 0:02:54.6]}
12... Qh5 {[%clk 0:02:27.6]} 13. Nxc6 {[%clk 0:02:49.6]} 13... bxc6 {[%clk
0:02:26.6]} 14. Re1 {[%clk 0:02:50.5]} 14... Be6 {[%clk 0:02:21.4]} 15. Qa4
{[%clk 0:02:49.9]} 15... O-O {[%clk 0:02:07.3]} 16. Qxc6 {[%clk 0:02:49]} 16...
Rfc8 {[%clk 0:02:02.4]} 17. Qb7 {[%clk 0:02:46.7]} 17... Bd6 {[%clk 0:01:53.8]}
18. Bg5 {[%clk 0:02:35.4]} 18... Bg4 {[%clk 0:01:43.7]} 19. Bxf6 {[%clk
0:02:13.2]} 19... Bxf3 {[%clk 0:01:42.9]} 20. gxf3 {[%clk 0:02:08.1]} 20...
Bxh2+ {[%clk 0:01:12.7]} 21. Kg2 {[%clk 0:01:56.5]} 21... gxf6 {[%clk
0:01:02.1]} 22. Rh1 {[%clk 0:01:55]} 22... Kh8 {[%clk 0:00:56]} 23. Qe7 {[%clk
0:01:28.1]} 23... Rg8+ {[%clk 0:00:49.2]} 24. Kf1 {[%clk 0:01:25.3]} 24... Qh3+
{[%clk 0:00:48.7]} 25. Ke2 {[%clk 0:01:21.5]} 25... Rae8 {[%clk 0:00:43.8]} 26.
Qxe8 {[%clk 0:01:21.6]} 26... Rxe8+ {[%clk 0:00:44.7]} 27. Kd2 {[%clk
0:01:21.4]} 27... Qg2 {[%clk 0:00:36.1]} 28. Raf1 {[%clk 0:01:19.2]} 28... Bf4+
{[%clk 0:00:22.9]} 29. Kc2 {[%clk 0:01:18.4]} 29... h6 {[%clk 0:00:22]} 30. Rh4
{[%clk 0:01:10.3]} 30... Qxf3 {[%clk 0:00:17.5]} 31. a4 {[%clk 0:00:57.8]} 31...
Bg5 {[%clk 0:00:15.7]} 32. Rd4 {[%clk 0:00:55.7]} 32... Re2+ {[%clk 0:00:14.5]}
33. Kb3 {[%clk 0:00:53.6]} 33... Rxf2 {[%clk 0:00:14.3]} 34. Re1 {[%clk
0:00:52.1]} 34... Qg2 {[%clk 0:00:12.7]} 35. Re8+ {[%clk 0:00:50]} 35... Kg7
{[%clk 0:00:13.1]} 36. Kb4 {[%clk 0:00:38.5]} 36... Rxb2+ {[%clk 0:00:13.2]} 37.
Kc5 {[%clk 0:00:36.7]} 37... Qf2 {[%clk 0:00:12.6]} 38. Kxd5 {[%clk 0:00:33.1]}
38... Qg2+ {[%clk 0:00:09.6]} 39. Kc5 {[%clk 0:00:28.6]} 39... Qb7 {[%clk
0:00:09.6]} 40. Rdd8 {[%clk 0:00:23.4]} 40... Qb6+ {[%clk 0:00:09.4]} 41. Kd5
{[%clk 0:00:23.1]} 41... Qb3+ {[%clk 0:00:08]} 42. Ke4 {[%clk 0:00:19.2]} 42...
Qb7+ {[%clk 0:00:05.7]} 43. Kd4 {[%clk 0:00:12.8]} 43... Qb6+ {[%clk 0:00:05.6]}
44. Kd5 {[%clk 0:00:09.3]} 44... Qb7+ {[%clk 0:00:05.8]} 45. Kd4 {[%clk
0:00:09.1]} 45... Qb6+ {[%clk 0:00:05]} 46. Kc4 {[%clk 0:00:09.5]} 46... Qc6+
{[%clk 0:00:04.4]} 47. Kd4 {[%clk 0:00:09.9]} 47... Qb6+ {[%clk 0:00:03]}
1/2-1/2